Workbook

Sheet StartHere
B2: Student Identification Sheet (version5.2)
B4: Name | C4: Melissa salgado | D4: <<- enter your name here | G4: (1) | H4: Add your name to Cell C4 and your Student ID to cell C6. Then Click [Start Here] to finish loading data.
G5: (2) | H5: Change the file name to include your name.
B6: Student ID | C6: 2434822 | D6: <<- enter your Student ID here | G6: (3) | H6: When done with your work, Click [I'm Done]
G7: (3) | H7: Upload the file to the applicable iCollege
B8: Date/time | C8: =NOW() -> 2021-04-22T23:47:16.440 | H8: assignment folder to receive credit for this workshop/tutorial
C9: Spring 2021 | G9: (4) | H9: Never use a file created or started by another student (that is academic dishonesty). All text, codes, writing, data entry, formulas, configuration and instructions must be performed by the individual submitting the work.
C10: You must use Excel Desktop. Cloud Excel 365 will not work for this class. | E10: 2021-04-01T23:34:17.040 | F10: Melissa salgado started S01
C12: Collaboration Started
C14: Individual Challenge started
C15: Kurt Schmitz © 2020 Do not post or reproduce.
B17: Excel release | C17: =INFO("release") -> 16.0 | D17: << Mac Users below 16.24, please update!
B18: OS | C18: =INFO("OSVERSION") -> Windows (64-bit) NT :.00 | D18: << Windows users with version 16.0 are good to go.

Sheet 5.ID (hidden)
A1: Do Not Alter or Delete this Worksheet or you submission cannot be graded! | E1: DirVer
A2: Action | B2: Name | C2: Panther ID | D2: Date/Time | E2: S01
A3: Start S01 | B3: Melissa salgado | C3: 2434822 | D3: 2021-04-01T23:34:17.010 | E3: User
A4: Starter Sheet | B4: None | C4: 0 | D4: 2020-01-01 | E4: C:\Users\HP\AppData\Local\Temp
E5: Welcome to Microsoft Excel version 16.0 build 4266 running on Windows (64-bit) NT :.00!

Sheet Financial information
A1: Donut Information | Z1: Spring 2021
A2: Based on the below data, create the profit model for Donuts to Go. | Z2: Melissa salgado
A3: Assume that each customer will buy one donut and one cup of coffee
F5: Enter totals
B6: Time period | E6: Fixed Costs | F6: =C11+C13+C17+C18+C19+C14+C20+C21+C23+C25+C26 -> 5550
A7: Revenue: Cup of Coffee | C7: 4 | E7: Varible Costs | F7: =C9+C15+C16 -> 0.85
A8: Revenue: Donut | C8: 3.5 | E8: Coffee | F8: =C15+C16 -> 0.35
A9: Donut ingredients per donunt) | B9: per donut | C9: 0.5 | E9: Donut | F9: =C9 -> 0.5
A10: paper products: napkins, plates etc
A11: Insurance | B11: month | C11: 200
A13: Maintenance & Repairs to equipment | B13: month | C13: 0
A14: Marketing & Promotion: Advertising | B14: month | C14: 50
A15: Coffee | B15: per cup | C15: 0.25
A16: Coffee cups | B16: per cup | C16: 0.1
A17: Payroll: Wages (Owner/ Manager) | B17: month | C17: 2500
A18: Payroll: Wages (per Employees) | B18: month | C18: 1000
A19: Donut and Coffee equipment rent | B19: month | C19: 500
A20: Professional Fees: Accounting | B20: month | C20: 50
A21: Professional Fees: Legal | B21: month | C21: 25
A22: Powdered and Liquid Beverages | C22: 0
A23: Rent | B23: month | C23: 1000
A24: Previous research expense for Donuts advancements | C24: 1500
A25: Supplies: Office | B25: month | C25: 25
A26: Utilities | B26: month | C26: 200
A30: Additional Data
A31: Monthly Production | B31: Lost Sales | C31: Day old revenue | D31: High demand, % above Average | E31: Low Demand, % below average
A32: 4000 | B32: 3 | C32: 1.25 | D32: 0.22 | E32: 0.26
A33: Franchise
A34: Monthly Fixed Expense increase | B34: 7000
A35: Monthly Production Increase | B35: 0.32
A36: Monthly demand increase | B36: 0.24
A37: States of Natures | B37: probabilities
A38: High demand | B38: 0.2
A39: Average demand | B39: 0.55
A40: Low demand | B40: 0.25
A64: Total

Sheet SI and regression Pt 1
A1: Month | B1: Demand | C1: Yearly average | D1: Seasonal Index | E1: Average SI | F1: Deseasonalized | G1: Time period | J1: Regression Output
A2: 1 | B2: 2302 | D2: =B2/$C$13 -> 0.7784259024 | E2: =AVERAGEIF(A$2:A$37,A2,D$2:D$37) -> 0.7397834539 | F2: =B2/E2 -> 3111.721394 | G2: 1 | I2: CLICK CELL J2 as output cell for regression | J2: =INTERCEPT(F2:F37,Time__period) -> 2775.343653 | K2: Intercept
A3: 2 | B3: 2792.5 | D3: =B3/$C$13 -> 0.9442894581 | E3: =AVERAGEIF(A$2:A$37,A3,D$2:D$37) -> 0.8469817051 | F3: =B3/E3 -> 3297.001556 | G3: 2 | J3: =SLOPE(F2:F37,Time__period) -> 30.86163492 | K3: Slope
A4: 3 | B4: 2454.5 | D4: 0.8299940823 | E4: 0.8070317116 | F4: 3041.392259 | G4: 3
A5: 4 | B5: 3254 | D5: 1.100346606 | E5: 1.025501446 | F5: 3173.081825 | G5: 4
A6: 5 | B6: 3586.5 | D6: =B6/$C$13 -> 1.212782146 | E6: 1.098741647 | F6: 3264.188638 | G6: 5
A7: 6 | B7: 2635.5 | D7: 0.8911995942 | E7: 1.020922504 | F7: 2581.48879 | G7: 6
A8: 7 | B8: 1986 | D8: 0.6715698707 | E8: 0.7665618129 | F8: 2590.789114 | G8: 7
A9: 8 | B9: 2685 | D9: 0.9079381182 | E9: 0.9225961056 | F9: 2910.265915 | G9: 8
A10: 9 | B10: 2868 | D10: 0.9698199341 | E10: 0.9578435785 | F10: 2994.225847 | G10: 9
A11: 10 | B11: 2948 | D11: 0.996872094 | E11: 1.084293762 | F11: 2718.8204 | G11: 10
A12: 11 | B12: 3451.5 | C12: Put yearly average in below cell | D12: 1.167131626 | E12: 1.208755818 | F12: 2855.41542 | G12: 11
A13: 12 | B13: 4523.5 | C13: =AVERAGE(B2:B13) -> 2957.25 | D13: 1.529630569 | E13: 1.520986456 | F13: 2974.056727 | G13: 12
A14: 1 | B14: 2403 | D14: =B14/$C$25 -> 0.7280715043 | E14: 0.7397834539 | F14: 3248.247832 | G14: 13
A15: 2 | B15: 2473.5 | D15: =B15/$C$25 -> 0.7494319043 | E15: 0.8469817051 | F15: 2920.370045 | G15: 14
A16: 3 | B16: 2583.5 | D16: 0.7827601879 | E16: 0.8070317116 | F16: 3201.237279 | G16: 15
A17: 4 | B17: 3362 | D17: 1.01863354 | E17: 1.025501446 | F17: 3278.396158 | G17: 16
A18: 5 | B18: 3400.5 | D18: 1.03029844 | E18: 1.098741647 | F18: 3094.904074 | G18: 17
A19: 6 | B19: 3628.5 | D19: 1.099378882 | E19: 1.020922504 | F19: 3554.138522 | G19: 18
A20: 7 | B20: 2614 | D20: 0.7920012119 | E20: 0.7665618129 | F20: 3410.031593 | G20: 19
A21: 8 | B21: 2979 | D21: 0.9025905166 | E21: 0.9225961056 | F21: 3228.931904 | G21: 20
A22: 9 | B22: 3129 | D22: 0.948038176 | E22: 0.9578435785 | F22: 3266.712927 | G22: 21
A23: 10 | B23: 3912 | D23: 1.185274958 | E23: 1.084293762 | F23: 3607.87836 | G23: 22
A24: 11 | B24: 4162.5 | C24: Put yearly average in below cell | D24: 1.26117255 | E24: 1.208755818 | F24: 3443.62355 | G24: 23
A25: 12 | B25: 4958.5 | C25: =AVERAGE(B14:B25) -> 3300.5 | D25: 1.502348129 | E25: 1.520986456 | F25: 3260.055329 | G25: 24
A26: 1 | B26: 2695 | D26: =B26/$C$37 -> 0.7128529548 | E26: 0.7397834539 | F26: 3642.95793 | G26: 25
A27: 2 | B27: 3203 | D27: =B27/$C$37 -> 0.8472237529 | E27: 0.8469817051 | F27: 3781.663737 | G27: 26
A28: 3 | B28: 3056 | D28: 0.8083408645 | E28: 0.8070317116 | F28: 3786.71613 | G28: 27
A29: 4 | B29: 3620 | D29: 0.9575241916 | E29: 1.025501446 | F29: 3529.980396 | G29: 28
A30: 5 | B30: 3981.5 | D30: 1.053144356 | E30: 1.098741647 | F30: 3623.690802 | G30: 29
A31: 6 | B31: 4053.5 | D31: 1.072189036 | E31: 1.020922504 | F31: 3970.428689 | G31: 30
A32: 7 | B32: 3161 | D32: 0.8361143563 | E32: 0.7665618129 | F32: 4123.607446 | G32: 31
A33: 8 | B33: 3619 | D33: 0.9572596821 | E33: 0.9225961056 | F33: 3922.626573 | G33: 32
A34: 9 | B34: 3613 | D34: 0.9556726255 | E34: 0.9578435785 | F34: 3772.014639 | G34: 33
A35: 10 | B35: 4048 | D35: =B35/$C$37 -> 1.070734234 | E35: 1.084293762 | F35: 3733.305624 | G35: 34
A36: 11 | B36: 4529 | C36: Put yearly average in below cell | D36: 1.197963277 | E36: 1.208755818 | F36: 3746.827882 | G36: 35 | I36: Use the average seasonal Index in the column for year 2018
A37: 12 | B37: 5788 | C37: =AVERAGE(B26:B37) -> 3780.583333 | D37: =B37/$C$37 -> 1.530980669 | E37: 1.520986456 | F37: 3805.425077 | G37: 36 | H37: Deseasonalized forecast | I37: Seasonalized forecast
A38: 1 | E38: 0.7397834539 | G38: 37 | H38: =_xlfn.FORECAST.LINEAR(G38,F$2:F$37,Time__period) -> 3917.224146 | I38: =H38*E2 -> 2897.897608 | J38: When you move your forecast to the profit models, you must use an equation, not just copy the values
A39: 2 | E39: 0.8469817051 | G39: 38 | H39: 3948.085781 | I39: =H39*E3 -> 3343.956426
A40: 3 | E40: 0.8070317116 | G40: 39 | H40: 3978.947415 | I40: 3211.136743
A41: 4 | E41: 1.025501446 | G41: 40 | H41: 4009.80905 | I41: 4112.064979
A42: 5 | E42: 1.098741647 | G42: 41 | H42: 4040.670685 | I42: 4439.653164
A43: 6 | E43: 1.020922504 | G43: 42 | H43: 4071.53232 | I43: 4156.718972
A44: 7 | E44: 0.7665618129 | G44: 43 | H44: 4102.393955 | I44: 3144.738548
A45: 8 | E45: 0.9225961056 | G45: 44 | H45: 4133.25559 | I45: 3813.325511
A46: 9 | E46: 0.9578435785 | G46: 45 | H46: 4164.117225 | I46: 3988.572944
A47: 10 | E47: 1.084293762 | G47: 46 | H47: 4194.97886 | I47: 4548.58941
A48: 11 | E48: 1.208755818 | G48: 47 | H48: 4225.840495 | I48: 5108.009282
A49: 12 | E49: 1.520986456 | G49: 48 | H49: 4256.70213 | I49: =H49*E13 -> 6474.386285
Z100: Melissa salgado
Z102: Spring 2021

Sheet Current operations Pt2 & Pt3
A1: CURRENT OPERATIONS | E1: Monthly Production | F1: Lost Sales | G1: Day old revenue | Z1: test
A2: Part 2 | E2: ='Financial information '!A32 -> 4000 | F2: ='Financial information '!B32 -> 3 | G2: ='Financial information '!C32 -> 1.25 | Z2: Summer 2020
A3: AVERAGE DEMAND
A4: Month | B4: January | C4: February | D4: March | E4: April | F4: May | G4: June | H4: July | I4: August | J4: September | K4: October | L4: November | M4: December
A5: Demand | B5: ='SI and regression Pt 1'!I38 -> 2897.897608 | C5: ='SI and regression Pt 1'!I39 -> 3343.956426 | D5: ='SI and regression Pt 1'!I40 -> 3211.136743 | E5: ='SI and regression Pt 1'!I41 -> 4112.064979 | F5: ='SI and regression Pt 1'!I42 -> 4439.653164 | G5: ='SI and regression Pt 1'!I43 -> 4156.718972 | H5: ='SI and regression Pt 1'!I44 -> 3144.738548 | I5: ='SI and regression Pt 1'!I45 -> 3813.325511 | J5: ='SI and regression Pt 1'!I46 -> 3988.572944 | K5: ='SI and regression Pt 1'!I47 -> 4548.58941 | L5: ='SI and regression Pt 1'!I48 -> 5108.009282 | M5: ='SI and regression Pt 1'!I49 -> 6474.386285
A6: satisfied demand | B6: =MIN($E$2,B5) -> 2897.897608 | C6: =MIN($E$2,C5) -> 3343.956426 | D6: 3211.136743 | E6: 4000 | F6: 4000 | G6: 4000 | H6: 3144.738548 | I6: 3813.325511 | J6: 3988.572944 | K6: 4000 | L6: 4000 | M6: 4000
A7: Extra donuts(over) | B7: =E2-$B$6 -> 1102.102392 | C7: =$E$2-C6 -> 656.0435737 | D7: =$E$2-D6 -> 788.8632571 | E7: 0 | F7: 0 | G7: 0 | H7: 855.2614523 | I7: 186.674489 | J7: 11.42705585 | K7: 0 | L7: 0 | M7: 0
A8: Unsatisfied customers (short) | B8: =B5-B6 -> 0 | C8: =C5-C6 -> 0 | D8: 0 | E8: 112.064979 | F8: 439.653164 | G8: 156.7189718 | H8: 0 | I8: 0 | J8: 0 | K8: 548.5894102 | L8: 1108.009282 | M8: 2474.386285
A9: Revenue
A10: coffee | B10: ='Financial information '!$C$7*B6 -> 11591.59043 | C10: ='Financial information '!$C$7*C6 -> 13375.82571 | D10: ='Financial information '!$C$7*D6 -> 12844.54697 | E10: ='Financial information '!$C$7*E6 -> 16000 | F10: ='Financial information '!$C$7*F6 -> 16000 | G10: ='Financial information '!$C$7*G6 -> 16000 | H10: ='Financial information '!$C$7*H6 -> 12578.95419 | I10: ='Financial information '!$C$7*I6 -> 15253.30204 | J10: ='Financial information '!$C$7*J6 -> 15954.29178 | K10: ='Financial information '!$C$7*K6 -> 16000 | L10: ='Financial information '!$C$7*L6 -> 16000 | M10: ='Financial information '!$C$7*M6 -> 16000
A11: donut | B11: ='Financial information '!$C$8*B6 -> 10142.64163 | C11: ='Financial information '!$C$8*C6 -> 11703.84749 | D11: ='Financial information '!$C$8*D6 -> 11238.9786 | E11: ='Financial information '!$C$8*E6 -> 14000 | F11: ='Financial information '!$C$8*F6 -> 14000 | G11: ='Financial information '!$C$8*G6 -> 14000 | H11: ='Financial information '!$C$8*H6 -> 11006.58492 | I11: ='Financial information '!$C$8*I6 -> 13346.63929 | J11: ='Financial information '!$C$8*J6 -> 13960.0053 | K11: ='Financial information '!$C$8*K6 -> 14000 | L11: ='Financial information '!$C$8*L6 -> 14000 | M11: ='Financial information '!$C$8*M6 -> 14000
A12: Revenue from day old sales | B12: =$G$2*B7 -> 1377.62799 | C12: =$G$2*C7 -> 820.0544672 | D12: 986.0790714 | E12: 0 | F12: 0 | G12: 0 | H12: 1069.076815 | I12: 233.3431113 | J12: 14.28381982 | K12: 0 | L12: 0 | M12: 0
A13: Total Revenue | B13: =SUM(B10:B12) -> 23111.86005 | C13: =SUM(C10:C12) -> 25899.72766 | D13: 25069.60464 | E13: 30000 | F13: 30000 | G13: 30000 | H13: 24654.61592 | I13: 28833.28444 | J13: 29928.5809 | K13: 30000 | L13: 30000 | M13: 30000
A14: Expenses
A15: Fixed Expenses
A16: Total Fixed Expense | B16: ='Financial information '!$F$6 -> 5550 | C16: ='Financial information '!$F$6 -> 5550 | D16: ='Financial information '!$F$6 -> 5550 | E16: ='Financial information '!$F$6 -> 5550 | F16: ='Financial information '!$F$6 -> 5550 | G16: ='Financial information '!$F$6 -> 5550 | H16: ='Financial information '!$F$6 -> 5550 | I16: ='Financial information '!$F$6 -> 5550 | J16: ='Financial information '!$F$6 -> 5550 | K16: ='Financial information '!$F$6 -> 5550 | L16: ='Financial information '!$F$6 -> 5550 | M16: ='Financial information '!$F$6 -> 5550
A18: Variable Expenses
A19: Coffee Variable expense | B19: =('Financial information '!$C$15+'Financial information '!$C$16)*$E$2 -> 1400 | C19: =('Financial information '!$C$15+'Financial information '!$C$16)*$E$2 -> 1400 | D19: =('Financial information '!$C$15+'Financial information '!$C$16)*$E$2 -> 1400 | E19: =('Financial information '!$C$15+'Financial information '!$C$16)*$E$2 -> 1400 | F19: =('Financial information '!$C$15+'Financial information '!$C$16)*$E$2 -> 1400 | G19: =('Financial information '!$C$15+'Financial information '!$C$16)*$E$2 -> 1400 | H19: =('Financial information '!$C$15+'Financial information '!$C$16)*$E$2 -> 1400 | I19: =('Financial information '!$C$15+'Financial information '!$C$16)*$E$2 -> 1400 | J19: =('Financial information '!$C$15+'Financial information '!$C$16)*$E$2 -> 1400 | K19: =('Financial information '!$C$15+'Financial information '!$C$16)*$E$2 -> 1400 | L19: =('Financial information '!$C$15+'Financial information '!$C$16)*$E$2 -> 1400 | M19: =('Financial information '!$C$15+'Financial information '!$C$16)*$E$2 -> 1400
A20: Donut Variable expense | B20: ='Financial information '!$C$9*$E$2 -> 2000 | C20: ='Financial information '!$C$9*$E$2 -> 2000 | D20: ='Financial information '!$C$9*$E$2 -> 2000 | E20: ='Financial information '!$C$9*$E$2 -> 2000 | F20: ='Financial information '!$C$9*$E$2 -> 2000 | G20: ='Financial information '!$C$9*$E$2 -> 2000 | H20: ='Financial information '!$C$9*$E$2 -> 2000 | I20: ='Financial information '!$C$9*$E$2 -> 2000 | J20: ='Financial information '!$C$9*$E$2 -> 2000 | K20: ='Financial information '!$C$9*$E$2 -> 2000 | L20: ='Financial information '!$C$9*$E$2 -> 2000 | M20: ='Financial information '!$C$9*$E$2 -> 2000
A21: Total Variable Expenses | B21: =B19+B20 -> 3400 | C21: =C19+C20 -> 3400 | D21: 3400 | E21: 3400 | F21: 3400 | G21: 3400 | H21: 3400 | I21: 3400 | J21: 3400 | K21: 3400 | L21: 3400 | M21: 3400
A22: Expenses: due to lost sales | B22: =$F$2*B8 -> 0 | C22: =$F$2*C8 -> 0 | D22: 0 | E22: 336.194937 | F22: 1318.959492 | G22: =$F$2*G8 -> 470.1569155 | H22: 0 | I22: 0 | J22: 0 | K22: 1645.76823 | L22: 3324.027846 | M22: 7423.158854
A23: Total Expenses | B23: =B16+B21+B22 -> 8950 | C23: =C16+C21+C22 -> 8950 | D23: 8950 | E23: 9286.194937 | F23: 10268.95949 | G23: 9420.156916 | H23: 8950 | I23: 8950 | J23: 8950 | K23: 10595.76823 | L23: 12274.02785 | M23: 16373.15885
N24: Yearly Total
A25: Profit Donuts and Coffee | B25: =B13-B23 -> 14161.86005 | C25: =C13-C23 -> 16949.72766 | D25: 16119.60464 | E25: 20713.80506 | F25: 19731.04051 | G25: 20579.84308 | H25: 15704.61592 | I25: 19883.28444 | J25: 20978.5809 | K25: 19404.23177 | L25: 17725.97215 | M25: 13626.84115 | N25: =SUM(B25:M25) -> 215579.4073
A27: Part 3 | B27: You should be able to copy from average to high and low and then just make some modifications
A28: HIGH DEMAND
A29: Month | B29: January | C29: February | D29: March | E29: April | F29: May | G29: June | H29: July | I29: August | J29: September | K29: October | L29: November | M29: December
A30: Demand | B30: =B5*1.22 -> 3535.435082 | C30: =C5*1.22 -> 4079.62684 | D30: 3917.586826 | E30: 5016.719274 | F30: 5416.37686 | G30: 5071.197146 | H30: 3836.581028 | I30: 4652.257123 | J30: 4866.058992 | K30: 5549.27908 | L30: 6231.771324 | M30: =M5*1.22 -> 7898.751267
A31: satisfied demand | B31: =IF(B30>$E$2,$E$2,B30) -> 3535.435082 | C31: =IF(C30>$E$2,$E$2,C30) -> 4000 | D31: 3917.586826 | E31: 4000 | F31: 4000 | G31: 4000 | H31: 3836.581028 | I31: 4000 | J31: 4000 | K31: 4000 | L31: 4000 | M31: 4000
A32: Extra donuts(over) | B32: =$E$2-B31 -> 464.5649183 | C32: =$E$2-C31 -> 0 | D32: 82.41317366 | E32: 0 | F32: 0 | G32: 0 | H32: 163.4189719 | I32: 0 | J32: 0 | K32: 0 | L32: 0 | M32: 0
A33: Unsatisfied customers (short) | B33: =B30-B31 -> 0 | C33: =C30-C31 -> 79.62684005 | D33: 0 | E33: 1016.719274 | F33: 1416.37686 | G33: 1071.197146 | H33: 0 | I33: 652.2571234 | J33: 866.0589919 | K33: 1549.27908 | L33: 2231.771324 | M33: 3898.751267
A34: Revenue
A35: coffee | B35: ='Financial information '!$C$7*B31 -> 14141.74033 | C35: ='Financial information '!$C$7*C31 -> 16000 | D35: ='Financial information '!$C$7*D31 -> 15670.34731 | E35: ='Financial information '!$C$7*E31 -> 16000 | F35: ='Financial information '!$C$7*F31 -> 16000 | G35: ='Financial information '!$C$7*G31 -> 16000 | H35: ='Financial information '!$C$7*H31 -> 15346.32411 | I35: ='Financial information '!$C$7*I31 -> 16000 | J35: ='Financial information '!$C$7*J31 -> 16000 | K35: ='Financial information '!$C$7*K31 -> 16000 | L35: ='Financial information '!$C$7*L31 -> 16000 | M35: ='Financial information '!$C$7*M31 -> 16000
A36: donut | B36: ='Financial information '!$C$8*B31 -> 12374.02279 | C36: ='Financial information '!$C$8*C31 -> 14000 | D36: ='Financial information '!$C$8*D31 -> 13711.55389 | E36: ='Financial information '!$C$8*E31 -> 14000 | F36: ='Financial information '!$C$8*F31 -> 14000 | G36: ='Financial information '!$C$8*G31 -> 14000 | H36: ='Financial information '!$C$8*H31 -> 13428.0336 | I36: ='Financial information '!$C$8*I31 -> 14000 | J36: ='Financial information '!$C$8*J31 -> 14000 | K36: ='Financial information '!$C$8*K31 -> 14000 | L36: ='Financial information '!$C$8*L31 -> 14000 | M36: ='Financial information '!$C$8*M31 -> 14000
A37: Revenue from day old sales | B37: =$G$2*B32 -> 580.7061479 | C37: =$G$2*C32 -> 0 | D37: 103.0164671 | E37: 0 | F37: 0 | G37: 0 | H37: 204.2737148 | I37: 0 | J37: 0 | K37: 0 | L37: 0 | M37: 0
A38: Total Revenue | B38: =SUM(B35:B37) -> 27096.46926 | C38: =SUM(C35:C37) -> 30000 | D38: 29484.91766 | E38: 30000 | F38: 30000 | G38: 30000 | H38: 28978.63143 | I38: 30000 | J38: =SUM(J35:J37) -> 30000 | K38: 30000 | L38: 30000 | M38: 30000
A39: Expenses
A40: Fixed Expenses
A41: Total Fixed Expense | B41: ='Financial information '!$F$6 -> 5550 | C41: ='Financial information '!$F$6 -> 5550 | D41: ='Financial information '!$F$6 -> 5550 | E41: ='Financial information '!$F$6 -> 5550 | F41: ='Financial information '!$F$6 -> 5550 | G41: ='Financial information '!$F$6 -> 5550 | H41: ='Financial information '!$F$6 -> 5550 | I41: ='Financial information '!$F$6 -> 5550 | J41: ='Financial information '!$F$6 -> 5550 | K41: ='Financial information '!$F$6 -> 5550 | L41: ='Financial information '!$F$6 -> 5550 | M41: ='Financial information '!$F$6 -> 5550
A43: Variable Expenses
A44: Coffee Variable expense | B44: =('Financial information '!$C$15+'Financial information '!$C$16)*$E$2 -> 1400 | C44: =('Financial information '!$C$15+'Financial information '!$C$16)*$E$2 -> 1400 | D44: =('Financial information '!$C$15+'Financial information '!$C$16)*$E$2 -> 1400 | E44: =('Financial information '!$C$15+'Financial information '!$C$16)*$E$2 -> 1400 | F44: =('Financial information '!$C$15+'Financial information '!$C$16)*$E$2 -> 1400 | G44: =('Financial information '!$C$15+'Financial information '!$C$16)*$E$2 -> 1400 | H44: =('Financial information '!$C$15+'Financial information '!$C$16)*$E$2 -> 1400 | I44: =('Financial information '!$C$15+'Financial information '!$C$16)*$E$2 -> 1400 | J44: =('Financial information '!$C$15+'Financial information '!$C$16)*$E$2 -> 1400 | K44: =('Financial information '!$C$15+'Financial information '!$C$16)*$E$2 -> 1400 | L44: =('Financial information '!$C$15+'Financial information '!$C$16)*$E$2 -> 1400 | M44: =('Financial information '!$C$15+'Financial information '!$C$16)*$E$2 -> 1400
A45: Donut Variable expense | B45: ='Financial information '!$C$9*$E$2 -> 2000 | C45: ='Financial information '!$C$9*$E$2 -> 2000 | D45: ='Financial information '!$C$9*$E$2 -> 2000 | E45: ='Financial information '!$C$9*$E$2 -> 2000 | F45: ='Financial information '!$C$9*$E$2 -> 2000 | G45: ='Financial information '!$C$9*$E$2 -> 2000 | H45: ='Financial information '!$C$9*$E$2 -> 2000 | I45: ='Financial information '!$C$9*$E$2 -> 2000 | J45: ='Financial information '!$C$9*$E$2 -> 2000 | K45: ='Financial information '!$C$9*$E$2 -> 2000 | L45: ='Financial information '!$C$9*$E$2 -> 2000 | M45: ='Financial information '!$C$9*$E$2 -> 2000
A46: Total Variable Expenses | B46: =B44+B45 -> 3400 | C46: =C44+C45 -> 3400 | D46: 3400 | E46: 3400 | F46: 3400 | G46: 3400 | H46: 3400 | I46: 3400 | J46: 3400 | K46: 3400 | L46: 3400 | M46: 3400
A47: Expenses: due to lost sales | B47: =$F$2*B33 -> 0 | C47: =$F$2*C33 -> 238.8805202 | D47: 0 | E47: 3050.157823 | F47: 4249.13058 | G47: 3213.591437 | H47: 0 | I47: 1956.77137 | J47: 2598.176976 | K47: 4647.837241 | L47: 6695.313972 | M47: 11696.2538
A48: Total Expenses | B48: =SUM(B41+B46+B47) -> 8950 | C48: =SUM(C41+C46+C47) -> 9188.88052 | D48: 8950 | E48: 12000.15782 | F48: 13199.13058 | G48: 12163.59144 | H48: 8950 | I48: 10906.77137 | J48: 11548.17698 | K48: 13597.83724 | L48: 15645.31397 | M48: 20646.2538
N49: Yearly Total
A50: Profit Donuts and Coffee | B50: =B38-B48 -> 18146.46926 | C50: =C38-C48 -> 20811.11948 | D50: 20534.91766 | E50: 17999.84218 | F50: 16800.86942 | G50: 17836.40856 | H50: 20028.63143 | I50: 19093.22863 | J50: 18451.82302 | K50: 16402.16276 | L50: 14354.68603 | M50: 9353.746198 | N50: =SUM(B50:M50) -> 209813.9046
A52: Part 3
A53: LOW DEMAND
A54: Month | B54: January | C54: February | D54: March | E54: April | F54: May | G54: June | H54: July | I54: August | J54: September | K54: October | L54: November | M54: December
A55: Demand | B55: =B5*0.74 -> 2144.44423 | C55: =C5*0.74 -> 2474.527755 | D55: 2376.24119 | E55: 3042.928084 | F55: 3285.343341 | G55: 3075.972039 | H55: 2327.106525 | I55: 2821.860878 | J55: 2951.543979 | K55: 3365.956164 | L55: 3779.926869 | M55: 4791.045851
A56: satisfied demand | B56: =IF(B55>$E$2,$E$2,B55) -> 2144.44423 | C56: =IF(C55>$E$2,$E$2,C55) -> 2474.527755 | D56: 2376.24119 | E56: 3042.928084 | F56: 3285.343341 | G56: 3075.972039 | H56: 2327.106525 | I56: 2821.860878 | J56: 2951.543979 | K56: 3365.956164 | L56: 3779.926869 | M56: 4000
A57: Extra donuts(over) | B57: =$E$2-B56 -> 1855.55577 | C57: =$E$2-C56 -> 1525.472245 | D57: 1623.75881 | E57: 957.0719155 | F57: 714.6566586 | G57: 924.0279608 | H57: 1672.893475 | I57: 1178.139122 | J57: 1048.456021 | K57: 634.0438365 | L57: 220.0731313 | M57: 0
A58: Unsatisfied customers (short) | B58: =B55-B56 -> 0 | C58: =C55-C56 -> 0 | D58: 0 | E58: 0 | F58: 0 | G58: 0 | H58: 0 | I58: 0 | J58: 0 | K58: 0 | L58: 0 | M58: 791.0458508
A59: Revenue
A60: coffee | B60: ='Financial information '!$C$7*B56 -> 8577.776919 | C60: ='Financial information '!$C$7*C56 -> 9898.111022 | D60: ='Financial information '!$C$7*D56 -> 9504.964759 | E60: ='Financial information '!$C$7*E56 -> 12171.71234 | F60: ='Financial information '!$C$7*F56 -> 13141.37337 | G60: ='Financial information '!$C$7*G56 -> 12303.88816 | H60: ='Financial information '!$C$7*H56 -> 9308.426101 | I60: ='Financial information '!$C$7*I56 -> 11287.44351 | J60: ='Financial information '!$C$7*J56 -> 11806.17591 | K60: ='Financial information '!$C$7*K56 -> 13463.82465 | L60: ='Financial information '!$C$7*L56 -> 15119.70747 | M60: ='Financial information '!$C$7*M56 -> 16000
A61: donut | B61: ='Financial information '!$C$8*B56 -> 7505.554805 | C61: ='Financial information '!$C$8*C56 -> 8660.847144 | D61: ='Financial information '!$C$8*D56 -> 8316.844164 | E61: ='Financial information '!$C$8*E56 -> 10650.2483 | F61: ='Financial information '!$C$8*F56 -> 11498.70169 | G61: ='Financial information '!$C$8*G56 -> 10765.90214 | H61: ='Financial information '!$C$8*H56 -> 8144.872838 | I61: ='Financial information '!$C$8*I56 -> 9876.513073 | J61: ='Financial information '!$C$8*J56 -> 10330.40393 | K61: ='Financial information '!$C$8*K56 -> 11780.84657 | L61: ='Financial information '!$C$8*L56 -> 13229.74404 | M61: ='Financial information '!$C$8*M56 -> 14000
A62: Revenue from day old sales | B62: =$G$2*B57 -> 2319.444713 | C62: =$G$2*C57 -> 1906.840306 | D62: 2029.698513 | E62: 1196.339894 | F62: 893.3208233 | G62: 1155.034951 | H62: 2091.116843 | I62: 1472.673902 | J62: 1310.570027 | K62: 792.5547956 | L62: 275.0914142 | M62: 0
A63: Total Revenue | B63: =SUM(B60:B62) -> 18402.77644 | C63: =SUM(C60:C62) -> 20465.79847 | D63: 19851.50744 | E63: 24018.30053 | F63: 25533.39588 | G63: 24224.82524 | H63: 19544.41578 | I63: 22636.63049 | J63: 23447.14987 | K63: 26037.22602 | L63: 28624.54293 | M63: 30000
A64: Expenses
A65: Fixed Expenses
A66: Total Fixed Expense | B66: ='Financial information '!$F$6 -> 5550 | C66: ='Financial information '!$F$6 -> 5550 | D66: ='Financial information '!$F$6 -> 5550 | E66: ='Financial information '!$F$6 -> 5550 | F66: ='Financial information '!$F$6 -> 5550 | G66: ='Financial information '!$F$6 -> 5550 | H66: ='Financial information '!$F$6 -> 5550 | I66: ='Financial information '!$F$6 -> 5550 | J66: ='Financial information '!$F$6 -> 5550 | K66: ='Financial information '!$F$6 -> 5550 | L66: ='Financial information '!$F$6 -> 5550 | M66: ='Financial information '!$F$6 -> 5550
A68: Variable Expenses
A69: Coffee Variable expense | B69: =('Financial information '!$C$15+'Financial information '!$C$16)*$E$2 -> 1400 | C69: =('Financial information '!$C$15+'Financial information '!$C$16)*$E$2 -> 1400 | D69: =('Financial information '!$C$15+'Financial information '!$C$16)*$E$2 -> 1400 | E69: =('Financial information '!$C$15+'Financial information '!$C$16)*$E$2 -> 1400 | F69: =('Financial information '!$C$15+'Financial information '!$C$16)*$E$2 -> 1400 | G69: =('Financial information '!$C$15+'Financial information '!$C$16)*$E$2 -> 1400 | H69: =('Financial information '!$C$15+'Financial information '!$C$16)*$E$2 -> 1400 | I69: =('Financial information '!$C$15+'Financial information '!$C$16)*$E$2 -> 1400 | J69: =('Financial information '!$C$15+'Financial information '!$C$16)*$E$2 -> 1400 | K69: =('Financial information '!$C$15+'Financial information '!$C$16)*$E$2 -> 1400 | L69: =('Financial information '!$C$15+'Financial information '!$C$16)*$E$2 -> 1400 | M69: =('Financial information '!$C$15+'Financial information '!$C$16)*$E$2 -> 1400
A70: Donut Variable expense | B70: ='Financial information '!$C$9*$E$2 -> 2000 | C70: ='Financial information '!$C$9*$E$2 -> 2000 | D70: ='Financial information '!$C$9*$E$2 -> 2000 | E70: ='Financial information '!$C$9*$E$2 -> 2000 | F70: ='Financial information '!$C$9*$E$2 -> 2000 | G70: ='Financial information '!$C$9*$E$2 -> 2000 | H70: ='Financial information '!$C$9*$E$2 -> 2000 | I70: ='Financial information '!$C$9*$E$2 -> 2000 | J70: ='Financial information '!$C$9*$E$2 -> 2000 | K70: ='Financial information '!$C$9*$E$2 -> 2000 | L70: ='Financial information '!$C$9*$E$2 -> 2000 | M70: ='Financial information '!$C$9*$E$2 -> 2000
A71: Total Variable Expenses | B71: =SUM(B69:B70) -> 3400 | C71: =SUM(C69:C70) -> 3400 | D71: 3400 | E71: 3400 | F71: 3400 | G71: 3400 | H71: 3400 | I71: 3400 | J71: 3400 | K71: 3400 | L71: 3400 | M71: 3400
A72: Expenses: due to lost sales | B72: =$F$2*B58 -> 0 | C72: =$F$2*C58 -> 0 | D72: 0 | E72: 0 | F72: 0 | G72: 0 | H72: 0 | I72: 0 | J72: 0 | K72: 0 | L72: 0 | M72: 2373.137552
A73: Total Expenses | B73: =B66+B71+B72 -> 8950 | C73: =C66+C71+C72 -> 8950 | D73: 8950 | E73: 8950 | F73: 8950 | G73: 8950 | H73: 8950 | I73: 8950 | J73: 8950 | K73: 8950 | L73: 8950 | M73: 11323.13755
N74: Yearly Total
A75: Profit Donuts and Coffee | B75: =B63-B73 -> 9452.776437 | C75: =C63-C73 -> 11515.79847 | D75: 10901.50744 | E75: 15068.30053 | F75: 16583.39588 | G75: 15274.82524 | H75: 10594.41578 | I75: 13686.63049 | J75: 14497.14987 | K75: 17087.22602 | L75: 19674.54293 | M75: 18676.86245 | N75: =SUM(B75:M75) -> 173013.4315
Z200: Melissa salgado
Z201: Spring 2021

Sheet Franchise operations Pt2 & Pt3
A1: FRANCHISE | E1: Monthly Production | F1: Lost Sales | G1: Day old revenue
A2: Part 2 | E2: ='Financial information '!A32*1.32 -> 5280 | F2: ='Financial information '!B32 -> 3 | G2: ='Financial information '!C32 -> 1.25
A3: AVERAGE DEMAND
A4: Month | B4: January | C4: February | D4: March | E4: April | F4: May | G4: June | H4: July | I4: August | J4: September | K4: October | L4: November | M4: December
A5: Demand | B5: ='Current operations Pt2 & Pt3 '!B5*1.24 -> 3593.393034 | C5: ='Current operations Pt2 & Pt3 '!C5*1.24 -> 4146.505969 | D5: ='Current operations Pt2 & Pt3 '!D5*1.24 -> 3981.809561 | E5: ='Current operations Pt2 & Pt3 '!E5*1.24 -> 5098.960574 | F5: ='Current operations Pt2 & Pt3 '!F5*1.24 -> 5505.169923 | G5: ='Current operations Pt2 & Pt3 '!G5*1.24 -> 5154.331525 | H5: ='Current operations Pt2 & Pt3 '!H5*1.24 -> 3899.475799 | I5: ='Current operations Pt2 & Pt3 '!I5*1.24 -> 4728.523634 | J5: ='Current operations Pt2 & Pt3 '!J5*1.24 -> 4945.830451 | K5: ='Current operations Pt2 & Pt3 '!K5*1.24 -> 5640.250869 | L5: ='Current operations Pt2 & Pt3 '!L5*1.24 -> 6333.93151 | M5: ='Current operations Pt2 & Pt3 '!M5*1.24 -> 8028.238993
A6: satisfied demand | B6: =MIN($E$2,B5) -> 3593.393034 | C6: =MIN($E$2,C5) -> 4146.505969 | D6: =MIN($E$2,D5) -> 3981.809561 | E6: =MIN($E$2,E5) -> 5098.960574 | F6: 5280 | G6: 5154.331525 | H6: 3899.475799 | I6: 4728.523634 | J6: 4945.830451 | K6: 5280 | L6: 5280 | M6: 5280
A7: Extra donuts(over) | B7: =$E$2-B6 -> 1686.606966 | C7: =$E$2-C6 -> 1133.494031 | D7: 1298.190439 | E7: 181.039426 | F7: 0 | G7: 125.6684749 | H7: 1380.524201 | I7: 551.4763664 | J7: 334.1695493 | K7: 0 | L7: 0 | M7: 0
A8: Unsatisfied customers (short) | B8: =B5-B6 -> 0 | C8: =C5-C6 -> 0 | D8: 0 | E8: 0 | F8: 225.1699234 | G8: 0 | H8: 0 | I8: 0 | J8: 0 | K8: 360.2508686 | L8: 1053.93151 | M8: 2748.238993
A9: Revenue
A10: coffee | B10: ='Financial information '!$C$7*B6 -> 14373.57214 | C10: ='Financial information '!$C$7*C6 -> 16586.02387 | D10: ='Financial information '!$C$7*D6 -> 15927.23824 | E10: ='Financial information '!$C$7*E6 -> 20395.8423 | F10: ='Financial information '!$C$7*F6 -> 21120 | G10: ='Financial information '!$C$7*G6 -> 20617.3261 | H10: ='Financial information '!$C$7*H6 -> 15597.9032 | I10: ='Financial information '!$C$7*I6 -> 18914.09453 | J10: ='Financial information '!$C$7*J6 -> 19783.3218 | K10: ='Financial information '!$C$7*K6 -> 21120 | L10: ='Financial information '!$C$7*L6 -> 21120 | M10: ='Financial information '!$C$7*M6 -> 21120
A11: donut | B11: ='Financial information '!$C$8*B6 -> 12576.87562 | C11: ='Financial information '!$C$8*C6 -> 14512.77089 | D11: ='Financial information '!$C$8*D6 -> 13936.33346 | E11: ='Financial information '!$C$8*E6 -> 17846.36201 | F11: ='Financial information '!$C$8*F6 -> 18480 | G11: ='Financial information '!$C$8*G6 -> 18040.16034 | H11: ='Financial information '!$C$8*H6 -> 13648.1653 | I11: ='Financial information '!$C$8*I6 -> 16549.83272 | J11: ='Financial information '!$C$8*J6 -> 17310.40658 | K11: ='Financial information '!$C$8*K6 -> 18480 | L11: ='Financial information '!$C$8*L6 -> 18480 | M11: ='Financial information '!$C$8*M6 -> 18480
A12: Revenue from day old sales | B12: =$G$2*B7 -> 2108.258708 | C12: =$G$2*C7 -> 1416.867539 | D12: 1622.738049 | E12: 226.2992825 | F12: 0 | G12: 157.0855936 | H12: 1725.655251 | I12: 689.345458 | J12: 417.7119366 | K12: 0 | L12: 0 | M12: 0
A13: Total Revenue | B13: =B10+B11+B12 -> 29058.70646 | C13: =C10+C11+C12 -> 32515.6623 | D13: 31486.30976 | E13: 38468.50359 | F13: 39600 | G13: 38814.57203 | H13: 30971.72374 | I13: 36153.27271 | J13: 37511.44032 | K13: 39600 | L13: 39600 | M13: 39600
A14: Expenses
A15: Fixed Expenses
A16: Total Fixed Expense | B16: ='Financial information '!$F$6+'Financial information '!$B$34 -> 12550 | C16: ='Financial information '!$F$6+'Financial information '!$B$34 -> 12550 | D16: ='Financial information '!$F$6+'Financial information '!$B$34 -> 12550 | E16: ='Financial information '!$F$6+'Financial information '!$B$34 -> 12550 | F16: ='Financial information '!$F$6+'Financial information '!$B$34 -> 12550 | G16: ='Financial information '!$F$6+'Financial information '!$B$34 -> 12550 | H16: ='Financial information '!$F$6+'Financial information '!$B$34 -> 12550 | I16: ='Financial information '!$F$6+'Financial information '!$B$34 -> 12550 | J16: ='Financial information '!$F$6+'Financial information '!$B$34 -> 12550 | K16: ='Financial information '!$F$6+'Financial information '!$B$34 -> 12550 | L16: ='Financial information '!$F$6+'Financial information '!$B$34 -> 12550 | M16: ='Financial information '!$F$6+'Financial information '!$B$34 -> 12550
A18: Variable Expenses
A19: Coffee Variable expense | B19: =('Financial information '!$C$15+'Financial information '!$C$16)*$E$2 -> 1848 | C19: =('Financial information '!$C$15+'Financial information '!$C$16)*$E$2 -> 1848 | D19: =('Financial information '!$C$15+'Financial information '!$C$16)*$E$2 -> 1848 | E19: =('Financial information '!$C$15+'Financial information '!$C$16)*$E$2 -> 1848 | F19: =('Financial information '!$C$15+'Financial information '!$C$16)*$E$2 -> 1848 | G19: =('Financial information '!$C$15+'Financial information '!$C$16)*$E$2 -> 1848 | H19: =('Financial information '!$C$15+'Financial information '!$C$16)*$E$2 -> 1848 | I19: =('Financial information '!$C$15+'Financial information '!$C$16)*$E$2 -> 1848 | J19: =('Financial information '!$C$15+'Financial information '!$C$16)*$E$2 -> 1848 | K19: =('Financial information '!$C$15+'Financial information '!$C$16)*$E$2 -> 1848 | L19: =('Financial information '!$C$15+'Financial information '!$C$16)*$E$2 -> 1848 | M19: =('Financial information '!$C$15+'Financial information '!$C$16)*$E$2 -> 1848
A20: Donut Variable expense | B20: ='Financial information '!$C$9*$E$2 -> 2640 | C20: ='Financial information '!$C$9*$E$2 -> 2640 | D20: ='Financial information '!$C$9*$E$2 -> 2640 | E20: ='Financial information '!$C$9*$E$2 -> 2640 | F20: ='Financial information '!$C$9*$E$2 -> 2640 | G20: ='Financial information '!$C$9*$E$2 -> 2640 | H20: ='Financial information '!$C$9*$E$2 -> 2640 | I20: ='Financial information '!$C$9*$E$2 -> 2640 | J20: ='Financial information '!$C$9*$E$2 -> 2640 | K20: ='Financial information '!$C$9*$E$2 -> 2640 | L20: ='Financial information '!$C$9*$E$2 -> 2640 | M20: ='Financial information '!$C$9*$E$2 -> 2640
A21: Total Variable Expenses | B21: =B19+B20 -> 4488 | C21: =C19+C20 -> 4488 | D21: 4488 | E21: 4488 | F21: 4488 | G21: 4488 | H21: 4488 | I21: 4488 | J21: 4488 | K21: 4488 | L21: 4488 | M21: 4488
A22: Expenses: due to lost sales | B22: =$F$2*B8 -> 0 | C22: =$F$2*C8 -> 0 | D22: 0 | E22: 0 | F22: 675.5097702 | G22: 0 | H22: 0 | I22: 0 | J22: 0 | K22: 1080.752606 | L22: 3161.794529 | M22: 8244.716979
A23: Total Expenses | B23: =B16+B21+B22 -> 17038 | C23: =C16+C21+C22 -> 17038 | D23: 17038 | E23: 17038 | F23: 17713.50977 | G23: 17038 | H23: 17038 | I23: 17038 | J23: 17038 | K23: 18118.75261 | L23: 20199.79453 | M23: =M16+M21+M22 -> 25282.71698
N24: Yearly Total
A25: Profit Donuts and Coffee | B25: =B13-B23 -> 12020.70646 | C25: =C13-C23 -> 15477.6623 | D25: 14448.30976 | E25: 21430.50359 | F25: 21886.49023 | G25: 21776.57203 | H25: 13933.72374 | I25: 19115.27271 | J25: 20473.44032 | K25: 21481.24739 | L25: 19400.20547 | M25: 14317.28302 | N25: =SUM(B25:M25) -> 215761.417
A27: Part 3
A28: HIGH DEMAND
A29: Month | B29: January | C29: February | D29: March | E29: April | F29: May | G29: June | H29: July | I29: August | J29: September | K29: October | L29: November | M29: December
A30: Demand | B30: ='Current operations Pt2 & Pt3 '!B30*1.24 -> 4383.939501 | C30: ='Current operations Pt2 & Pt3 '!C30*1.24 -> 5058.737282 | D30: ='Current operations Pt2 & Pt3 '!D30*1.24 -> 4857.807665 | E30: ='Current operations Pt2 & Pt3 '!E30*1.24 -> 6220.7319 | F30: ='Current operations Pt2 & Pt3 '!F30*1.24 -> 6716.307307 | G30: ='Current operations Pt2 & Pt3 '!G30*1.24 -> 6288.284461 | H30: ='Current operations Pt2 & Pt3 '!H30*1.24 -> 4757.360475 | I30: ='Current operations Pt2 & Pt3 '!I30*1.24 -> 5768.798833 | J30: ='Current operations Pt2 & Pt3 '!J30*1.24 -> 6033.91315 | K30: ='Current operations Pt2 & Pt3 '!K30*1.24 -> 6881.10606 | L30: ='Current operations Pt2 & Pt3 '!L30*1.24 -> 7727.396442 | M30: ='Current operations Pt2 & Pt3 '!M30*1.24 -> 9794.451572
A31: satisfied demand | B31: =IF(B30>$E$2,$E$2,B30) -> 4383.939501 | C31: =IF(C30>$E$2,$E$2,C30) -> 5058.737282 | D31: 4857.807665 | E31: 5280 | F31: 5280 | G31: 5280 | H31: 4757.360475 | I31: 5280 | J31: 5280 | K31: 5280 | L31: 5280 | M31: 5280
A32: Extra donuts(over) | B32: =$E$2-B31 -> 896.0604987 | C32: =$E$2-C31 -> 221.2627183 | D32: 422.1923353 | E32: 0 | F32: 0 | G32: 0 | H32: 522.6395251 | I32: 0 | J32: 0 | K32: 0 | L32: 0 | M32: 0
A33: Unsatisfied customers (short) | B33: =B30-B31 -> 0 | C33: =C30-C31 -> 0 | D33: 0 | E33: 940.7319002 | F33: 1436.307307 | G33: 1008.284461 | H33: 0 | I33: 488.798833 | J33: 753.9131499 | K33: 1601.10606 | L33: 2447.396442 | M33: 4514.451572
A34: Revenue
A35: coffee | B35: ='Financial information '!$C$7*B31 -> 17535.75801 | C35: ='Financial information '!$C$7*C31 -> 20234.94913 | D35: ='Financial information '!$C$7*D31 -> 19431.23066 | E35: ='Financial information '!$C$7*E31 -> 21120 | F35: ='Financial information '!$C$7*F31 -> 21120 | G35: ='Financial information '!$C$7*G31 -> 21120 | H35: ='Financial information '!$C$7*H31 -> 19029.4419 | I35: ='Financial information '!$C$7*I31 -> 21120 | J35: ='Financial information '!$C$7*J31 -> 21120 | K35: ='Financial information '!$C$7*K31 -> 21120 | L35: ='Financial information '!$C$7*L31 -> 21120 | M35: ='Financial information '!$C$7*M31 -> 21120
A36: donut | B36: ='Financial information '!$C$8*B31 -> 15343.78825 | C36: ='Financial information '!$C$8*C31 -> 17705.58049 | D36: ='Financial information '!$C$8*D31 -> 17002.32683 | E36: ='Financial information '!$C$8*E31 -> 18480 | F36: ='Financial information '!$C$8*F31 -> 18480 | G36: ='Financial information '!$C$8*G31 -> 18480 | H36: ='Financial information '!$C$8*H31 -> 16650.76166 | I36: ='Financial information '!$C$8*I31 -> 18480 | J36: ='Financial information '!$C$8*J31 -> 18480 | K36: ='Financial information '!$C$8*K31 -> 18480 | L36: ='Financial information '!$C$8*L31 -> 18480 | M36: ='Financial information '!$C$8*M31 -> 18480
A37: Revenue from day old sales | B37: =$G$2*B32 -> 1120.075623 | C37: =$G$2*C32 -> 276.5783979 | D37: 527.7404192 | E37: 0 | F37: 0 | G37: 0 | H37: 653.2994064 | I37: 0 | J37: 0 | K37: 0 | L37: 0 | M37: 0
A38: Total Revenue | B38: =SUM(B35:B37) -> 33999.62188 | C38: =SUM(C35:C37) -> 38217.10801 | D38: 36961.2979 | E38: 39600 | F38: 39600 | G38: 39600 | H38: 36333.50297 | I38: 39600 | J38: 39600 | K38: 39600 | L38: 39600 | M38: 39600
A39: Expenses
A40: Fixed Expenses
A41: Total Fixed Expense | B41: ='Financial information '!$F$6+'Financial information '!$B$34 -> 12550 | C41: ='Financial information '!$F$6+'Financial information '!$B$34 -> 12550 | D41: ='Financial information '!$F$6+'Financial information '!$B$34 -> 12550 | E41: ='Financial information '!$F$6+'Financial information '!$B$34 -> 12550 | F41: ='Financial information '!$F$6+'Financial information '!$B$34 -> 12550 | G41: ='Financial information '!$F$6+'Financial information '!$B$34 -> 12550 | H41: ='Financial information '!$F$6+'Financial information '!$B$34 -> 12550 | I41: ='Financial information '!$F$6+'Financial information '!$B$34 -> 12550 | J41: ='Financial information '!$F$6+'Financial information '!$B$34 -> 12550 | K41: ='Financial information '!$F$6+'Financial information '!$B$34 -> 12550 | L41: ='Financial information '!$F$6+'Financial information '!$B$34 -> 12550 | M41: ='Financial information '!$F$6+'Financial information '!$B$34 -> 12550
A43: Variable Expenses
A44: Coffee Variable expense | B44: =('Financial information '!$C$15+'Financial information '!$C$16)*$E$2 -> 1848 | C44: =('Financial information '!$C$15+'Financial information '!$C$16)*$E$2 -> 1848 | D44: =('Financial information '!$C$15+'Financial information '!$C$16)*$E$2 -> 1848 | E44: =('Financial information '!$C$15+'Financial information '!$C$16)*$E$2 -> 1848 | F44: =('Financial information '!$C$15+'Financial information '!$C$16)*$E$2 -> 1848 | G44: =('Financial information '!$C$15+'Financial information '!$C$16)*$E$2 -> 1848 | H44: =('Financial information '!$C$15+'Financial information '!$C$16)*$E$2 -> 1848 | I44: =('Financial information '!$C$15+'Financial information '!$C$16)*$E$2 -> 1848 | J44: =('Financial information '!$C$15+'Financial information '!$C$16)*$E$2 -> 1848 | K44: =('Financial information '!$C$15+'Financial information '!$C$16)*$E$2 -> 1848 | L44: =('Financial information '!$C$15+'Financial information '!$C$16)*$E$2 -> 1848 | M44: =('Financial information '!$C$15+'Financial information '!$C$16)*$E$2 -> 1848
A45: Donut Variable expense | B45: ='Financial information '!$C$9*$E$2 -> 2640 | C45: ='Financial information '!$C$9*$E$2 -> 2640 | D45: ='Financial information '!$C$9*$E$2 -> 2640 | E45: ='Financial information '!$C$9*$E$2 -> 2640 | F45: ='Financial information '!$C$9*$E$2 -> 2640 | G45: ='Financial information '!$C$9*$E$2 -> 2640 | H45: ='Financial information '!$C$9*$E$2 -> 2640 | I45: ='Financial information '!$C$9*$E$2 -> 2640 | J45: ='Financial information '!$C$9*$E$2 -> 2640 | K45: ='Financial information '!$C$9*$E$2 -> 2640 | L45: ='Financial information '!$C$9*$E$2 -> 2640 | M45: ='Financial information '!$C$9*$E$2 -> 2640
A46: Total Variable Expenses | B46: =SUM(B44:B45) -> 4488 | C46: =SUM(C44:C45) -> 4488 | D46: 4488 | E46: 4488 | F46: 4488 | G46: 4488 | H46: 4488 | I46: 4488 | J46: 4488 | K46: 4488 | L46: 4488 | M46: 4488
A47: Expenses: due to lost sales | B47: =$F$2*B33 -> 0 | C47: =$F$2*C33 -> 0 | D47: 0 | E47: 2822.195701 | F47: 4308.92192 | G47: 3024.853382 | H47: 0 | I47: 1466.396499 | J47: 2261.73945 | K47: 4803.318179 | L47: 7342.189325 | M47: 13543.35471
A48: Total Expenses | B48: =SUM(B41+B46+B47) -> 17038 | C48: =SUM(C41+C46+C47) -> 17038 | D48: 17038 | E48: 19860.1957 | F48: 21346.92192 | G48: 20062.85338 | H48: 17038 | I48: 18504.3965 | J48: 19299.73945 | K48: =SUM(K41+K46+K47) -> 21841.31818 | L48: 24380.18933 | M48: 30581.35471
N49: Yearly Total
A50: Profit Donuts and Coffee | B50: =B38-B48 -> 16961.62188 | C50: =C38-C48 -> 21179.10801 | D50: 19923.2979 | E50: 19739.8043 | F50: 18253.07808 | G50: 19537.14662 | H50: 19295.50297 | I50: 21095.6035 | J50: 20300.26055 | K50: 17758.68182 | L50: =L38-L48 -> 15219.81067 | M50: 9018.645285 | N50: =SUM(B50:M50) -> 218282.5616
A52: Part 3
A53: LOW DEMAND
A54: Month | B54: January | C54: February | D54: March | E54: April | F54: May | G54: June | H54: July | I54: August | J54: September | K54: October | L54: November | M54: December
A55: Demand | B55: ='Current operations Pt2 & Pt3 '!B55*1.24 -> 2659.110845 | C55: ='Current operations Pt2 & Pt3 '!C55*1.24 -> 3068.414417 | D55: ='Current operations Pt2 & Pt3 '!D55*1.24 -> 2946.539075 | E55: ='Current operations Pt2 & Pt3 '!E55*1.24 -> 3773.230825 | F55: ='Current operations Pt2 & Pt3 '!F55*1.24 -> 4073.825743 | G55: ='Current operations Pt2 & Pt3 '!G55*1.24 -> 3814.205329 | H55: ='Current operations Pt2 & Pt3 '!H55*1.24 -> 2885.612091 | I55: ='Current operations Pt2 & Pt3 '!I55*1.24 -> 3499.107489 | J55: ='Current operations Pt2 & Pt3 '!J55*1.24 -> 3659.914534 | K55: ='Current operations Pt2 & Pt3 '!K55*1.24 -> 4173.785643 | L55: ='Current operations Pt2 & Pt3 '!L55*1.24 -> 4687.109317 | M55: ='Current operations Pt2 & Pt3 '!M55*1.24 -> 5940.896855
A56: satisfied demand | B56: =IF(B55>=$E$2,$E$2,B55) -> 2659.110845 | C56: =IF(C55>=$E$2,$E$2,C55) -> 3068.414417 | D56: 2946.539075 | E56: 3773.230825 | F56: 4073.825743 | G56: 3814.205329 | H56: 2885.612091 | I56: 3499.107489 | J56: 3659.914534 | K56: 4173.785643 | L56: =IF(L55>=$E$2,$E$2,L55) -> 4687.109317 | M56: 5280
A57: Extra donuts(over) | B57: =$E$2-B56 -> 2620.889155 | C57: =$E$2-C56 -> 2211.585583 | D57: 2333.460925 | E57: 1506.769175 | F57: 1206.174257 | G57: 1465.794671 | H57: 2394.387909 | I57: 1780.892511 | J57: 1620.085466 | K57: 1106.214357 | L57: 592.8906828 | M57: 0
A58: Unsatisfied customers (short) | B58: =B55-B56 -> 0 | C58: =C55-C56 -> 0 | D58: 0 | E58: 0 | F58: 0 | G58: 0 | H58: 0 | I58: 0 | J58: 0 | K58: 0 | L58: 0 | M58: 660.8968549
A59: Revenue
A60: coffee | B60: ='Financial information '!$C$7*B56 -> 10636.44338 | C60: ='Financial information '!$C$7*C56 -> 12273.65767 | D60: ='Financial information '!$C$7*D56 -> 11786.1563 | E60: ='Financial information '!$C$7*E56 -> 15092.9233 | F60: ='Financial information '!$C$7*F56 -> 16295.30297 | G60: ='Financial information '!$C$7*G56 -> 15256.82131 | H60: ='Financial information '!$C$7*H56 -> 11542.44837 | I60: ='Financial information '!$C$7*I56 -> 13996.42996 | J60: ='Financial information '!$C$7*J56 -> 14639.65813 | K60: ='Financial information '!$C$7*K56 -> 16695.14257 | L60: ='Financial information '!$C$7*L56 -> 18748.43727 | M60: ='Financial information '!$C$7*M56 -> 21120
A61: donut | B61: ='Financial information '!$C$8*B56 -> 9306.887958 | C61: ='Financial information '!$C$8*C56 -> 10739.45046 | D61: ='Financial information '!$C$8*D56 -> 10312.88676 | E61: ='Financial information '!$C$8*E56 -> 13206.30789 | F61: ='Financial information '!$C$8*F56 -> 14258.3901 | G61: ='Financial information '!$C$8*G56 -> 13349.71865 | H61: ='Financial information '!$C$8*H56 -> 10099.64232 | I61: ='Financial information '!$C$8*I56 -> 12246.87621 | J61: ='Financial information '!$C$8*J56 -> 12809.70087 | K61: ='Financial information '!$C$8*K56 -> 14608.24975 | L61: ='Financial information '!$C$8*L56 -> 16404.88261 | M61: ='Financial information '!$C$8*M56 -> 18480
A62: Revenue from day old sales | B62: =$G$2*B57 -> 3276.111444 | C62: =$G$2*C57 -> 2764.481979 | D62: 2916.826156 | E62: 1883.461469 | F62: 1507.717821 | G62: 1832.243339 | H62: 2992.984886 | I62: 2226.115639 | J62: 2025.106833 | K62: 1382.767947 | L62: 741.1133536 | M62: 0
A63: Total Revenue | B63: =SUM(B60:B62) -> 23219.44278 | C63: =SUM(C60:C62) -> 25777.5901 | D63: 25015.86922 | E63: 30182.69265 | F63: 32061.4109 | G63: 30438.7833 | H63: 24635.07557 | I63: 28469.42181 | J63: 29474.46583 | K63: 32686.16027 | L63: 35894.43323 | M63: 39600
A64: Expenses
A65: Fixed Expenses
A66: Total Fixed Expense | B66: ='Financial information '!$F$6+'Financial information '!$B$34 -> 12550 | C66: ='Financial information '!$F$6+'Financial information '!$B$34 -> 12550 | D66: ='Financial information '!$F$6+'Financial information '!$B$34 -> 12550 | E66: ='Financial information '!$F$6+'Financial information '!$B$34 -> 12550 | F66: ='Financial information '!$F$6+'Financial information '!$B$34 -> 12550 | G66: ='Financial information '!$F$6+'Financial information '!$B$34 -> 12550 | H66: ='Financial information '!$F$6+'Financial information '!$B$34 -> 12550 | I66: ='Financial information '!$F$6+'Financial information '!$B$34 -> 12550 | J66: ='Financial information '!$F$6+'Financial information '!$B$34 -> 12550 | K66: ='Financial information '!$F$6+'Financial information '!$B$34 -> 12550 | L66: ='Financial information '!$F$6+'Financial information '!$B$34 -> 12550 | M66: ='Financial information '!$F$6+'Financial information '!$B$34 -> 12550
A68: Variable Expenses
A69: Coffee Variable expense | B69: =('Financial information '!$C$15+'Financial information '!$C$16)*$E$2 -> 1848 | C69: =('Financial information '!$C$15+'Financial information '!$C$16)*$E$2 -> 1848 | D69: =('Financial information '!$C$15+'Financial information '!$C$16)*$E$2 -> 1848 | E69: =('Financial information '!$C$15+'Financial information '!$C$16)*$E$2 -> 1848 | F69: =('Financial information '!$C$15+'Financial information '!$C$16)*$E$2 -> 1848 | G69: =('Financial information '!$C$15+'Financial information '!$C$16)*$E$2 -> 1848 | H69: =('Financial information '!$C$15+'Financial information '!$C$16)*$E$2 -> 1848 | I69: =('Financial information '!$C$15+'Financial information '!$C$16)*$E$2 -> 1848 | J69: =('Financial information '!$C$15+'Financial information '!$C$16)*$E$2 -> 1848 | K69: =('Financial information '!$C$15+'Financial information '!$C$16)*$E$2 -> 1848 | L69: =('Financial information '!$C$15+'Financial information '!$C$16)*$E$2 -> 1848 | M69: =('Financial information '!$C$15+'Financial information '!$C$16)*$E$2 -> 1848
A70: Donut Variable expense | B70: ='Financial information '!$C$9*$E$2 -> 2640 | C70: ='Financial information '!$C$9*$E$2 -> 2640 | D70: ='Financial information '!$C$9*$E$2 -> 2640 | E70: ='Financial information '!$C$9*$E$2 -> 2640 | F70: ='Financial information '!$C$9*$E$2 -> 2640 | G70: ='Financial information '!$C$9*$E$2 -> 2640 | H70: ='Financial information '!$C$9*$E$2 -> 2640 | I70: ='Financial information '!$C$9*$E$2 -> 2640 | J70: ='Financial information '!$C$9*$E$2 -> 2640 | K70: ='Financial information '!$C$9*$E$2 -> 2640 | L70: ='Financial information '!$C$9*$E$2 -> 2640 | M70: ='Financial information '!$C$9*$E$2 -> 2640
A71: Total Variable Expenses | B71: =SUM(B69:B70) -> 4488 | C71: =SUM(C69:C70) -> 4488 | D71: 4488 | E71: 4488 | F71: 4488 | G71: 4488 | H71: 4488 | I71: 4488 | J71: 4488 | K71: 4488 | L71: 4488 | M71: 4488
A72: Expenses: due to lost sales | B72: =$F$2*B58 -> 0 | C72: =$F$2*C58 -> 0 | D72: 0 | E72: 0 | F72: 0 | G72: 0 | H72: 0 | I72: 0 | J72: 0 | K72: 0 | L72: 0 | M72: 1982.690565
A73: Total Expenses | B73: =B66+B71+B72 -> 17038 | C73: =C66+C71+C72 -> 17038 | D73: 17038 | E73: 17038 | F73: 17038 | G73: 17038 | H73: 17038 | I73: 17038 | J73: 17038 | K73: 17038 | L73: 17038 | M73: 19020.69056
N74: Yearly Total
A75: Profit Donuts and Coffee | B75: =B63-B73 -> 6181.442781 | C75: =C63-C73 -> 8739.590105 | D75: 7977.869221 | E75: 13144.69265 | F75: 15023.4109 | G75: 13400.7833 | H75: 7597.075571 | I75: 11431.42181 | J75: 12436.46583 | K75: 15648.16027 | L75: 18856.43323 | M75: 20579.30944 | N75: =SUM(B75:M75) -> 151016.6551

Sheet Expected Values Pt3
B1: PAYOFF TABLE
C3: State of Nature | H3: Summary of Results | I3: Methods
B4: Decision Alternatives | C4: Low | D4: Average | E4: High | H4: =B4 -> Decision Alternatives | I4: Maximin | J4: MaxiMax | K4: Laplace | L4: MinMax regret | M4: EVUII | N4: EOL
B5: Current operations | C5: ='Current operations Pt2 & Pt3 '!N75 -> 173013.4315 | D5: ='Current operations Pt2 & Pt3 '!N25 -> 215579.4073 | E5: ='Current operations Pt2 & Pt3 '!N50 -> 209813.9046 | H5: current operations | I5: =G13 -> 173013.4315 | J5: =G20 -> 0 | K5: =G27 -> 199468.9145 | L5: =G34 -> 8468.656966 | M5: =F42 -> 203784.8129 | N5: =G58 -> 1793.836717
B6: franchise | C6: ='Franchise operations Pt2 & Pt3'!N75 -> 151016.6551 | D6: ='Franchise operations Pt2 & Pt3'!N25 -> 215761.417 | E6: ='Franchise operations Pt2 & Pt3'!N50 -> 218282.5616 | H6: Franchise | I6: 0 | J6: =G21 -> 218282.5616 | K6: =G28 -> 0 | L6: =G35 -> 0 | M6: =F43 -> 200079.4555 | N6: =G59 -> 0
H7: Decision Alternatives | I7: Current operations | J7: Franchise | K7: Franchise | L7: Franchise | M7: Franchise | N7: Franchise
B8: DM UNDER IGNORANCE
H9: Kiana should choose to:
B10: Maximin | H10: Franchise
C11: State of Nature
B12: Decision Alternatives | C12: Low | D12: Average | E12: High | F12: Min | G12: Max | H12: Because:
B13: Current | C13: =C5 -> 173013.4315 | D13: =D5 -> 215579.4073 | E13: =E5 -> 209813.9046 | F13: =MIN(C13:E13) -> 173013.4315 | G13: =IF(F13=MAX($F$13:$F$14),F13,) -> 173013.4315 | H13: It has the highest payoff when evaluated using the various decision analysis methods.
B14: Franchise | C14: =C6 -> 151016.6551 | D14: =D6 -> 215761.417 | E14: =E6 -> 218282.5616 | F14: =MIN(C14:E14) -> 151016.6551 | G14: =IF(F14=MAX($F$13:$F$14),F14,) -> 0
B17: Maximax
C18: State of Nature
B19: Decision Alternatives | C19: Low | D19: Average | E19: High | F19: Max | G19: Max
B20: Current | C20: =C5 -> 173013.4315 | D20: =D5 -> 215579.4073 | E20: =E5 -> 209813.9046 | F20: =MAX(C20:E20) -> 215579.4073 | G20: =IF(F20=MAX($F$20:$F$21),F20, ) -> 0
B21: Franchise | C21: =C6 -> 151016.6551 | D21: =D6 -> 215761.417 | E21: =E6 -> 218282.5616 | F21: =MAX(C21:E21) -> 218282.5616 | G21: =IF(F21=MAX($F$20:$F$21),F21, ) -> 218282.5616
B24: Laplace
C25: State of Nature
B26: Decision Alternatives | C26: Low | D26: Average | E26: High | F26: Laplace | G26: Max
B27: Current | C27: =C5 -> 173013.4315 | D27: =D5 -> 215579.4073 | E27: =E5 -> 209813.9046 | F27: =AVERAGE(C27:E27) -> 199468.9145 | G27: =IF(F27=MAX($F$27:$F$28),F27, ) -> 199468.9145
B28: Franchise | C28: =C6 -> 151016.6551 | D28: =D6 -> 215761.417 | E28: =E6 -> 218282.5616 | F28: =AVERAGE(C28:E28) -> 195020.2112 | G28: =IF(F28=MAX($F$27:$F$28),F28, ) -> 0
B31: Minimax Regret
B32: Regret table | C32: State of Nature
B33: Decision Alternatives | C33: Low | D33: Average | E33: High | F33: Max | G33: Min
B34: Current | C34: =MAX($C$5:$C$6)-C5 -> 0 | D34: =MAX($D$5:$D$6)-D5 -> 182.0096799 | E34: =MAX($E$5:$E$6)-E5 -> 8468.656966 | F34: =MAX(C34:E34) -> 8468.656966 | G34: =IF(F34=MIN($F$34:$F$35),F34, ) -> 8468.656966
B35: Franchise | C35: =MAX($C$5:$C$6)-C6 -> 21996.77643 | D35: =MAX($D$5:$D$6)-D6 -> 0 | E35: =MAX($E$5:$E$6)-E6 -> 0 | F35: =MAX(C35:E35) -> 21996.77643 | G35: =IF(F35=MIN($F$34:$F$35),F35, ) -> 0
B37: DM UNDER RISK
B38: EVUII
C39: State of Nature
B40: Decision Alternatives | C40: Low | D40: Average | E40: High
B41: Probability | C41: 0.25 | D41: 0.55 | E41: 0.2 | F41: Expected Value
B42: Current | C42: =C41*C5 -> 43253.35788 | D42: =D41*D5 -> 118568.674 | E42: =E41*E5 -> 41962.78093 | F42: =SUM(C42:E42) -> 203784.8129
B43: Franchise | C43: =C41*C6 -> 37754.16378 | D43: =D41*D6 -> 118668.7794 | E43: =E41*E6 -> 43656.51232 | F43: =SUM(C43:E43) -> 200079.4555
B46: EVUPI
C47: State of Nature
B48: Decision Alternatives | C48: Low | D48: Average | E48: High | F48: EVUPI
B49: Probability | C49: 0.25 | D49: 0.55 | E49: 0.2
B50: Franchise | C50: =C49*C5 -> 43253.35788 | D50: =D49*D6 -> 118668.7794 | E50: =E49*E6 -> 43656.51232 | F50: =SUM(C50:E50) -> 205578.6496
B52: EVPI | C52: =F50-F42 -> 1793.836717
B54: EOL
B55: Regret table | C55: State of Nature
B56: Decision Alternatives | C56: Low | D56: Average | E56: High | F56: EOL | G56: Min
B57: Probability | C57: 0.25 | D57: 0.55 | E57: 0.2
B58: Current | C58: =C34 -> 0 | D58: =D34 -> 182.0096799 | E58: =E34 -> 8468.656966 | F58: =SUMPRODUCT($C$57:$E$57,C58:E58) -> 1793.836717 | G58: =IF(F58=MIN($F$58:$F$59),F58, ) -> 1793.836717
B59: Franchise | C59: =C35 -> 21996.77643 | D59: =D35 -> 0 | E59: 0 | F59: =SUMPRODUCT($C$57:$E$57,C59:E59) -> 5499.194108 | G59: =IF(F59=MIN($F$58:$F$59),F59, ) -> 0
